Cogmind - Beta 15 @@@ ROGUE MODE // 2025.05.28 @ 23:40:40 Player: celerysam Result: Destroyed by Autobeam Turret with Autobeam Performance ------------- Evolutions (0) 0 Regions Visited (2) 400 Robots Destroyed (33) 165 Value Destroyed (882) 882 Prototype IDs (11) 220 Alien Tech Used (0) 0 Bonus (0) 0 TOTAL SCORE: 1667 Bonus ------- None Cogmind --------- Core Integrity 0/250 Matter 300/300 Energy 196/200 System Corruption 0% Temperature Cool (21) Movement Walking (130) Location -10/Subcaves Parts ------- > --- POWER (1) -------- Subdweller Power Source > --- PROPULSION (2) --- Cargo Legs > --- UTILITY (2+1) ---- Large Storage Unit ECM Suite (+) Makeshift Light Armor Plating > --- WEAPON (2) ------- Subdweller Laser Subdweller Laser > --- INVENTORY (15) --- Light Treads Wheel Wheel Wheel Wheel Improved Hover Unit Improved Hover Unit Improved Hover Unit Improved Hover Unit Small Storage Unit Scrap Shield Rocket Launcher Subdweller Shrapnel Launcher Peak State ------------ > --- POWER ------------ Subdweller Power Source > --- PROPULSION ------- Cargo Legs > --- UTILITY ---------- Large Storage Unit ECM Suite Makeshift Light Armor Plating > --- WEAPON ----------- Subdweller Laser Subdweller Laser > --- INVENTORY -------- Light Treads Wheel Wheel Wheel Wheel Improved Hover Unit Improved Hover Unit Improved Hover Unit Improved Hover Unit Small Storage Unit Scrap Shield Rocket Launcher Subdweller Shrapnel Launcher [Rating: 30] Favorites ----------- Power Light Ion Engine Engine Light Ion Engine Propulsion Cargo Legs Leg Cargo Legs Wheel Wheel Utility Large Storage Unit Device ECM Suite Storage Large Storage Unit Protection Makeshift Light Armor Plating Weapon Light Cannon Energy Gun EM Shotgun Ballistic Gun Assault Rifle Ballistic Cannon Light Cannon Launcher Rocket Launcher Special Weapon Mining Laser Build | -11 -10 -10 ------- Run | Yrd Mat Sub Slots Evolved . | . . . Power . | . . . Propulsion . | . . . Utility . | . . . Weapon . | . . . Parts Attached 30 | 6 13 11 Power 4 | 1 2 1 Engine 4 | 1 2 1 Core . | . . . Reactor . | . . . Propulsion 6 | 2 3 1 Treads . | . . . Leg 3 | 2 . 1 Wheel 3 | . 3 . Hover . | . . . Flight . | . . . Utility 6 | 1 2 3 Device 2 | . 1 1 Storage 2 | 1 1 . Processor . | . . . Hackware . | . . . Protection 2 | . . 2 Artifact . | . . . Weapon 14 | 2 6 6 Energy Gun 5 | 1 1 3 Energy Cannon . | . . . Ballistic Gun 3 | 1 2 . Ballistic Cannon 4 | . 2 2 Launcher 1 | . 1 . Special Weapon 1 | . . 1 Impact Weapon . | . . . Slashing Weapon . | . . . Piercing Weapon . | . . . Special Melee Weapon . | . . . Unidentified Prototypes . | . . . Parts Lost 11 | . 4 7 Power 2 | . 1 1 Propulsion 1 | . 1 . Utility 2 | . . 2 Weapon 6 | . 2 4 Highest Loss Streak 4 | . 4 2 To Critical Strikes . | . . . Average Backups 12 | 4 11 13 Power . | . . . Propulsion 7 | 2 6 8 Utility 1 | . 2 1 Weapon 3 | . 3 3 Tool/Special . | . . . Unused Backups 14 | . 4 10 Power . | . . . Propulsion 9 | . 1 8 Utility 2 | . 1 1 Weapon 3 | . 2 1 Tool/Special . | . . . Average Slot Usage (%) 84 | . 93 80 Engine 9 | . 13 7 Leg 8 | . 1 11 Wheel 8 | . 25 . Device 12 | . 10 13 Storage 12 | . 14 11 Protection 7 | . . 10 Energy Gun 6 | . 6 5 Ballistic Gun 2 | . 9 . Ballistic Cannon 11 | . 10 12 Launcher 1 | . . 1 Special Weapon 2 | . . 3 Peak Build Rating 30 | 6 11 30 Average Rating 20 | 4 9 25 On Entrance 5 | . 6 10 Naked Turns . | . . . Heaviest Build 39 | 14 31 39 Greatest Support 55 | 20 20 55 Greatest Overweight (x) 2 | . 2 1 Average Overweight (x) . | . 1 . Largest Inventory Capacity 15 | 8 15 15 Average Capacity 14 | 6 14 15 Most Carried 15 | 6 15 15 Average Carried 13 | 4 11 14 Final Capacity 15 | 8 15 15 Final Carried 15 | 6 15 14 Class Distribution -------------------- 100% | Mutant Dominant Class ---------------- Mutant | -10/Materials Mutant | -10/Subcaves Resources | -11 -10 -10 ----------- Run | Yrd Mat Sub Matter Collected 1066 | 260 196 610 Remotely . | . . . Salvage Created 854 | . 339 515 Parts 68 | . 33 35 Haulers Intercepted 1 | . 1 . Recyclers Shooed . | . . . Parts Field Recycled . | . . . Retrieved Matter . | . . . Parts Self-Destructed 10 | . . 10 Prevented 2 | . . 2 Kills | -11 -10 -10 ------- Run | Yrd Mat Sub Combat Hostiles Destroyed 29 | . 11 18 Guns 15 | . 11 4 Cannons 7 | . . 7 AOE 7 | . . 7 Classes Destroyed 5 | . 4 1 Hauler 1 | . 1 . Watcher 3 | . 3 . Swarmer 11 | . 8 3 Grunt 4 | . 3 1 Subdweller 14 | . . 14 Best Kill Streak 4 | . 4 4 Combat Bots Only 4 | . 3 4 Max Kills in Single Turn 2 | . 1 2 Gunslinging . | . . . Exploded 2 | . . 2 Melee . | . . . Uniques/NPCs Destroyed . | . . . Combat | -11 -10 -10 -------- Run | Yrd Mat Sub Hostile Shots Fired 229 | . 97 132 Missed 81 | . 28 53 Hits 148 | . 69 79 Projectile 148 | . 69 79 Damage Taken 2176 | . 657 1519 Core 250 | . 173 77 Absorbed by Shields 111 | . 53 58 Core Remaining (%) 100 | 100 . . Volleys Fired 143 | . 55 88 Largest 2 | . 2 2 Hottest 130 | . 85 130 Shots Fired 214 | . 97 117 Gun 108 | . 86 22 Cannon 79 | . 10 69 Launcher 9 | . 1 8 Special 18 | . . 18 Kinetic 145 | . 76 69 Thermal 42 | . 16 26 Explosive 9 | . 1 8 Electromagnetic 18 | . 4 14 Robot Hit Streak 17 | . 17 9 Robot Miss Streak 5 | . 5 4 Penetration Max . | . . . Secondary Targets 2 | . 2 . Max Gunslinging Chain 1 | . 1 . Shots Hit Robots 123 | . 62 61 Core Hits 56 | . 23 33 Critical Kills . | . . . Critical Parts Destroyed 1 | . 1 . Critical Strikes 4 | . 1 3 Destroy 1 | . 1 . Blast 3 | . . 3 Melee Attacks . | . . . Impact . | . . . Slashing . | . . . Piercing . | . . . Sneak Attacks . | . . . Combat Hostiles . | . . . Follow-up Attacks . | . . . Damage Inflicted 2462 | . 699 1763 Guns 923 | . 622 301 Cannons 659 | . 77 582 Explosions 880 | . . 880 Melee . | . . . Ramming . | . . . Kinetic 1128 | . 546 582 Thermal 461 | . 131 330 Explosive 695 | . . 695 Electromagnetic 178 | . 22 156 Impact . | . . . Slashing . | . . . Piercing . | . . . Highest Corruption . | . . . Average Corruption . | . . . Corruption Purged . | . . . Corruption Blocked . | . . . Overload Shots . | . . . Overflow Damage 26 | . 6 20 Projectiles 6 | . 6 . Explosions 20 | . . 20 Melee . | . . . Knockbacks 6 | . . 6 Impact . | . . . Kinetic 6 | . . 6 Secondary . | . . . Self-Inflicted Damage 23 | . . 23 Shots 1 | . . 1 Rammed . | . . . Targets Rammed . | . . . Kicked . | . . . Crushed . | . . . Highest Temperature 184 | . 184 6 Average Temperature 55 | . 56 6 Received Heat Transfer 587 | . 212 375 Siege Activations . | . . . Martial Activations . | . . . Shielding Activations . | . . . Robots Disrupted . | . . . Combat Hostiles . | . . . Robots Corrupted . | . . . Combat Hostiles . | . . . Parts Fried . | . . . Impact Corruptions . | . . . Robots Melted . | . . . Combat Hostiles . | . . . Parts Melted 2 | . . 2 Heat Transferred 758 | . 333 425 Parts Sabotaged . | . . . Parts Stolen . | . . . Parts Stripped . | . . . Power Chain Reactions 2 | . . 2 Alert | -11 -10 -10 ------- Run | Yrd Mat Sub Maximum Alert Level . | . . . Low Security (%) 100 | 100 100 . Level 1 . | . . . Level 2 . | . . . Level 3 . | . . . Level 4 . | . . . Level 5 . | . . . High Security . | . . . Max Security . | . . . Peak Influence 97 | . 97 . Initial . | . . . Average 21 | . 23 . Influence Increases 455 | . 305 150 Destroy 0b10 Robot/C 300 | . 220 80 Destroy 0b10 Robot/NC 20 | . 20 . Destroy Leader 58 | . 48 10 Destroy Structure 17 | . 17 . Lose Combat Pursuer 60 | . . 60 Influence Decreases 343 | . 305 38 Time Decay 283 | . 265 18 Lost Part 60 | . 40 20 Squads Dispatched 1 | . 1 . Investigation 1 | . 1 . Extermination . | . . . Reinforcement . | . . . Assault . | . . . Garrison . | . . . Intercept . | . . . Searches Triggered . | . . . Construction Impeded . | . . . Haulers Reinforced . | . . . Active Scanning Responses . | . . . Cargo Convoy Interrupts . | . . . Stealth | -11 -10 -10 --------- Run | Yrd Mat Sub Distress Signals 2 | . 2 . Communications Jammed . | . . . Distress Signals . | . . . Times Spotted 42 | . 22 20 Peak Tracking Total 7 | . 7 7 Tactical Retreats 2 | . . 2 Traps | -11 -10 -10 ------- Run | Yrd Mat Sub Traps Triggered 3 | . 2 1 Indirectly . | . . . Trap Hack Attempts . | . . . Triggered . | . . . Disarmed . | . . . Reprogrammed . | . . . Reused . | . . . Traps Extracted . | . . . Installed . | . . . Triggered . | . . . Machines | -11 -10 -10 ---------- Run | Yrd Mat Sub Machines Disabled 2 | . 1 1 Max in Single Turn 1 | . 1 1 Machines Repaired . | . . . Machines Dismantled . | . . . Machines Sabotaged . | . . . Overloaded Fab Kills . | . . . Hacking | -11 -10 -10 --------- Run | Yrd Mat Sub Machines Accessed 1 | . . 1 Terminals . | . . . Fabricators . | . . . Repair Stations . | . . . Recycling Units . | . . . Scanalyzers . | . . . Garrison Access . | . . . Total Hacks 1 | . . 1 Successful 1 | . . 1 Failed . | . . . Catastrophic . | . . . Database Lockouts . | . . . Manual . | . . . Terminals . | . . . Fabricators . | . . . Repair Stations . | . . . Recycling Units . | . . . Scanalyzers . | . . . Garrison Access . | . . . Terminal Hacks 1 | . . 1 Proto ID Catalog 1 | . . 1 Fabricator Hacks . | . . . Repair Station Hacks . | . . . Recycling Unit Hacks . | . . . Scanalyzer . | . . . Garrison Access Hacks . | . . . Unauthorized Hacks . | . . . Terminals . | . . . Fabricators . | . . . Repair Stations . | . . . Recycling Units . | . . . Scanalyzers . | . . . Garrison Access . | . . . Data Cores Recovered . | . . . Used . | . . . Hacking Detections . | . . . Full Trace Events . | . . . Feedback Events . | . . . Feedback Blocked . | . . . Robot Schematics Acquired . | . . . Robots Built . | . . . Authchips . | . . . Time . | . . . Total Robot Build Rating . | . . . Part Schematics Acquired . | . . . Parts Built . | . . . Authchips . | . . . Time . | . . . Total Part Build Rating . | . . . Parts Repaired . | . . . Time . | . . . Parts Recycled . | . . . Recycled Matter . | . . . Retrieved Matter . | . . . Retrieved Components . | . . . Parts Scanalyzed . | . . . Part Schematics Acquired . | . . . Parts Damaged . | . . . Bothacking | -11 -10 -10 ------------ Run | Yrd Mat Sub Used RIF Installer . | . . . Robots Hacked . | . . . Non-combat . | . . . Combat . | . . . Robot Hacks Applied . | . . . Relay Couplers Released . | . . . Fabnet Peak Effective % . | . . . Robots Rewired . | . . . Allies Hacked . | . . . Hacks Repelled . | . . . Allies | -11 -10 -10 -------- Run | Yrd Mat Sub Total Allies . | . . . Largest Group . | . . . Highest-Rated Group . | . . . Highest-Rated Ally . | . . . Total Orders . | . . . Ally Attacks . | . . . Total Damage . | . . . Kills . | . . . Allies Corrupted . | . . . Allies Melted . | . . . Intel | -11 -10 -10 ------- Run | Yrd Mat Sub Active Infowar (turns) 1358 | . . 1358 ECM 1358 | . . 1358 Robot Analysis Total . | . . . Derelict Logs Recovered 1 | . . 1 Drone Launches . | . . . Drone Recoveries . | . . . Exploration | -11 -10 -10 ------------- Run | Yrd Mat Sub Turns Passed 3554 | 72 1064 2418 Spaces Moved 2544 | 55 839 1650 Core 12 | 12 . . Treads . | . . . Legs 1665 | 43 33 1589 Wheels 867 | . 806 61 Hover . | . . . Flight . | . . . Fastest Speed 50 | 50 95 95 Average Speed 117 | 104 96 128 Slowest Speed 130 | 120 120 130 Overloaded Moves . | . . . Propulsion Burnouts . | . . . Robots Hopped . | . . . Potential Cave-ins . | . . . Cave-ins Triggered . | . . . Exploration Rate (%) 61 | 4 93 86 Regions Visited 2 Branch Regions 1 Pre-discovered Areas 2 | . . 2 Known Exits Taken . | . . . Unknown Exits Taken 2 | 1 1 . Scrap Searched 3 | . . 3 Spaces Dug 16 | . 16 . Terrain Destroyed 78 | . 16 62 Melee . | . . . Projectile . | . . . AOE 78 | . 16 62 Terrain Rammed . | . . . Walls Destroyed . | . . . Machines Disabled . | . . . Actions | -11 -10 -10 --------- Run | Yrd Mat Sub Total 2862 | 67 1004 1791 Wait 82 | . 61 21 Move 2542 | 54 838 1650 Hop . | . . . Pick Up 39 | 7 22 10 Fast Attach 10 | 5 4 1 Attach 16 | 1 7 8 Detach 1 | . 1 . Swap 13 | . 6 7 Drop 16 | . 10 6 Fire 143 | . 55 88 Melee . | . . . Ram . | . . . Kick . | . . . Crush . | . . . Escape Stasis . | . . . Rewire . | . . . Trap . | . . . Miscellaneous . | . . . Route ------- -11/Scrapyard -10/Materials (discovered 6 exits: [*Mat x3] / [*Min x2] / *Sub) -10/Subcaves (discovered 2 exits: [*Mat x2]) History --------- Turn | Location | Event 10 | -11/Scrapyard | Discovered new exit (range 15) 73 | -11/Scrapyard | Entered Materials 190 | -10/Materials | Discovered new exit (range 15) 268 | -10/Materials | Core integrity fell below 50% 305 | -10/Materials | Lost 4 parts (1p1n2w) 319 | -10/Materials | Build established: Mutant 440 | -10/Materials | Discovered new exit (range 15) 491 | -10/Materials | Discovered new exit (range 6) 558 | -10/Materials | Discovered new exit (range 15) 769 | -10/Materials | Discovered new exit (range 15) 1128 | -10/Materials | Discovered new exit (range 10) 1137 | -10/Materials | Entered Subcaves 1138 | -10/Subcaves | Approached by a straggling Scientist 1189 | -10/Subcaves | Visited 4L-MR0's lab 1203 | -10/Subcaves | Found Cargo Legs 1205 | -10/Subcaves | Attached Cargo Legs, gained temporary slots: Utility x2 1928 | -10/Subcaves | Ambushed by Subdweller buried in earth 2044 | -10/Subcaves | Shifting Twisted Machinery released Scrap Shield 2050 | -10/Subcaves | Shifting Twisted Machinery released Flamer 2132 | -10/Subcaves | Learned location of Zion (-7) 2132 | -10/Subcaves | Met a Zionite searching for "candidates" 2297 | -10/Subcaves | Discovered new exit (range 14) 2332 | -10/Subcaves | Discovered new exit (range 16) 2555 | -10/Subcaves | Core integrity fell below 20% 3329 | -10/Subcaves | A swath of the cavern ceiling suddenly collapsed 3555 | -10/Subcaves | Destroyed by Autobeam Turret with Autobeam Last Messages --------------- 03388_ G-47 Trooper destroyed. 03388_ Lgt. Cannon destroyed. 03390_ Lgt. Assault Rifle fries itself beyond repair. 03392_ Imp. Heat Sink fries itself beyond repair. 03392_ EM Shotgun destroyed. 03393_ Corrupted Lgt. Assault Rifle self-destruct mechanism malfunctions. 03393_ Acquired 11 matter. 03413_ Sub. Monowheel melted. 03413_ 75-U63(R) destroyed. 03415_ G-34 Mercenary destroyed. 03420_ Sml. Laser fries itself beyond repair. 03421_ BS-CCP(R) destroyed. 03426_ Acquired 30 matter. 03429_ Acquired 21 matter. 03434_ Acquired Sub. Power Source. 03437_ Acquired Sub. Laser. 03509_ Acquired 20 matter. Map ----- +----------------------------------------------------+ | #""# #????????## ####???????????????????????? | | =" # # ##???????# #?????????????????????????? | | "!"# ## #??####?# #??????????????????????????? | | "## ### ##?# #### ##?????????????????????????? | | # # ## ### #####?????????????????????? | | ### ## ##????????????????????? | | ### ##????######?????????? | | ## ### ##???# ###???????? | | ## ##?# #???#" & #???????? | | ####### ##?# ## ####???#" #???????? | | ??????# ## # ### ######## &" #???????? | | ??????### # #?## ## " ########? | | ????????# # ??#### % " #? | | ????????## ### ?????### ## #?? | | ?????????######?# ???????##### " ##??? | | ????????????????# #?????????# ##"##??? | | ????????????? ??# #?????????# """#""#??? | | ????????????? ?# #?????????# #######"""###??? | | ????????????t ##????????## ##????###"##???? | | ????????????? ## ?????????# #?????##"#????? | | ?????????????? ##% ???????## #????##""#????? | | ????????????????# ######## ;#????#""####??? | | ????????????????# #;# #######"##"##?? | | ????????????????# % [ ##"##"##" "#?? | | ????????????????# =% &%& ;;;#"""#"###?? | | ?????????????# @ ;==%&&####""""#"""#???? | | ??????????????# # &%%##??#"###"#"##???? | | ??????????? ## &#???###?##"##????? | | ??????????? ## !#????????####????? | | ??????????? ## ### ##????????#"#????? | | ????????????# #?# #??????###"####?? | | ????????????# ## ## ##?## ######## ""## #?? | | ????????????#???# ?###??## # # "### | | ??????????????? ??????# """"""# | | ?????????????? ??????## """"""" # | | ?????????????? ?????## ###"### # | | ?????????????? ??????# ###### # | | ???????????????? ??????# ## | | ?????????????????? ???????# ## | | ???????????????????????????## ####?### | | ????????????????????????????## ##??????? | | ?????????????????????????????## ##???????? | | ??????????????????????????????##### ####????????? | | ??????????????????????????????????####???????????? | | ?????????????????????????????????????????????????? | | ?????????????????????????????????????????????????? | | ?????????????????????????????????????????????????? | | ?????????????????????????????????????????????????? | | ?????????????????????????????????????????????????? | | ?????????????????????????????????????????????????? | +----------------------------------------------------+ Best States ------------- Heat Dissipation 25 Energy Generation 15 Energy Capacity 250 Matter Stores 300 Matter Capacity 300 Sight Range 16 Terrain Scan Density 10 ECM Strength 1 Armor Coverage 150 Evasion (%) 55 Item Schematics ----------------- None Robot Schematics ------------------ None Fabricated ------------ Nothing Repaired ---------- Nothing Alien Tech Used ----------------- None Achievements -------------- None Challenges ------------ None Game ------ Seed GhostPiercingCleaver Manual? 0 Play Time 00:22:02 Cumulative 266.5 hours Start 2025.05.28 @ 23:15:08 End 2025.05.28 @ 23:40:40 Sessions 1 Manual Loads 0 Difficulty Rogue Special Mode None Game No. 405 Rogue 405 Adventurer 0 Explorer 0 Win Type - Total 1 Types 1/0/0/0/0/0/0/0/0/0 Lore% 64 Gallery% 63 Achievement% 43 Wizard Run 0 Options --------- Layout 1 ASCII 0 Keyboard 0 Movement Mouse Keybinds 0 Fullscreen 2 Font 24/Smallcaps Map View 50x35 Zoom Use 0% Tactical HUD 1 Map Filters NONE Filters NONE Steam 1 RUN: 33d5a56c-8716-4962-8075-18d09533d07d